[Event "European Women-ch 2023"]
[Site "Petrovac"]
[Date "2023.03.25"]
[Round "7.6"]
[White "Danielian, Elina"]
[Black "Daulyte-Cornette, Deimante"]
[Result "1/2-1/2"]
[Annotator "TA"]
[ECO "D38"]
[WhiteElo "2431"]
[BlackElo "2344"]
[PlyCount "99"]
[EventDate "2023.03.15"]
[EventType "swiss"]
[EventCountry "MNE"]
[SourceTitle "playchess.com"]
[Source "ChessBase"]
[SourceQuality "1"]
[TimeControl "40/5400+30:1800+30"]

{[%evp 12,99,12,8,27,27,22,8,30,10,28,13,0,-2,0,0,0,-51,-60,-72,-76,-100,-28,-30,-19,-33,-21,-30,-6,-23,38,35,34,41,40,34,34,35,33,32,55,55,77,63,148,152,146,148,164,162,161,158,271,244,208,233,236,142,137,159,150,145,142,89,89,91,91,62,62,62,62,49,49,49,49,49,49,49,49,0,0,0,0,30,47,8,8,0,41,0]} 1. d4 {[%emt 0:00:03]} d5 {[%emt 0:00:08]} 2. c4 {[%emt 0:00:05]} e6 {[%emt 0:00:07]} 3. Nc3 {[%emt 0:00:05]} Nf6 {[%emt 0:00:12]} 4. Nf3 {[%emt 0:01:10]} Bb4 {[%emt 0:00:13]} 5. Qa4+ {[%emt 0:00:58]} Nc6 {[%emt 0:00:08]} 6. e3 {[%emt 0:00:03]} O-O {[%emt 0:00:22]} 7. Bd2 {[%emt 0:00:03]} Re8 {[%emt 0:00:49] D38: Queen's Gambit Declined: Ragozin Defence (4 Nf3 Bb4).} 8. a3 {[%emt 0:10:50]} Bf8 {[%emt 0:01:55]} 9. Be2 {[%emt 0:06:17]} dxc4 {[%emt 0:21:21] The position is equal.} 10. Bxc4 {[%emt 0:02:20]} (10. Qxc4 {is more complex.} e5 11. Ng5 Qe7 12. d5) 10... h6 {[%emt 0:02:17]} 11. b4 {[%emt 0:10:55]} a6 {[%emt 0:20:17]} 12. Qc2 {[%emt 0:04:13] [#]} e5 $146 {[%emt 0:08:29][%cal Re5d4]} ({Predecessor:} 12... b6 13. Rd1 Bb7 14. Bc1 Bd6 15. Ne5 Bxe5 16. dxe5 Nd7 17. f4 Ncxe5 18. fxe5 Qh4+ {0-1 Hedman,E (2362)-Dougherty,M (2066) Reykjavik Kvika op 2022 (9)}) 13. Qa2 {[%emt 0:08:25]} ({Not} 13. Qg6 $2 Be6 14. Bxe6 Rxe6 $19) 13... Qd7 {[%emt 0:01:14][%cal Re5d4]} 14. d5 {[%emt 0:08:12]} (14. O-O $11) 14... Na7 $15 {[%emt 0:00:19]} 15. h3 {[%emt 0:05:15] Prevents Qg4} Nb5 {[%emt 0:01:22]} 16. Rc1 {[%emt 0:02:09]} Nxc3 {[%emt 0:09:06]} (16... e4 $17 17. Nh2 Nd6) 17. Bxc3 $11 {[%emt 0:00:09]} Bd6 {[%emt 0:00:05]} 18. Nd2 {[%emt 0:07:32][%cal Bf3d2,Bd2f1,Bf1e3,Be3f5][%mdl 32]} b5 {[%emt 0:06:46]} 19. Bb3 {[%emt 0:02:42]} Bb7 {[%emt 0:00:38]} 20. O-O {[%emt 0:02:18]} c6 {[%emt 0:05:02]} ({Black should try} 20... Qe7 $11) 21. dxc6 $1 $14 {[%emt 0:02:50]} Bxc6 {[%emt 0:00:11]} 22. Rfd1 {[%emt 0:00:22]} Rad8 {[%emt 0:03:14]} 23. Nf1 {[%emt 0:00:53][%cal Od1d6]} Qb7 {[%emt 0:00:24]} 24. f3 {[%emt 0:02:24]} Bb8 {[%emt 0:00:53]} 25. e4 {[%emt 0:03:46] Repels Bd5} Nh5 {[%emt 0:00:46]} 26. Kh2 {[%emt 0:01:08] Active counter play!} Nf4 {[%emt 0:03:18]} 27. Ne3 {[%emt 0:03:41]} Qe7 {[%emt 0:02:22]} (27... Rxd1 $14 28. Rxd1 Rf8) 28. Nf5 $16 {[%emt 0:02:58]} Qf6 {[%emt 0:00:23] [#]} 29. Be1 $1 {[%emt 0:01:26]} Rxd1 {[%emt 0:03:50]} 30. Rxd1 {[%emt 0:00:08] Hoping for Bh4.} Ne6 {[%emt 0:02:08]} 31. Bh4 {[%emt 0:01:37]} Ng5 {[%emt 0:00:14]} (31... g5 $16) 32. Qc2 {[%emt 0:03:10] Qc5 would be deadly.} Rc8 {[%emt 0:01:29][%cal Oc6d7]} 33. Qc5 {[%emt 0:03:17]} Kh7 {[%emt 0:03:15][%cal Oc6d7]} 34. Qe7 {[%emt 0:03:41] Inhibits Bd7.} Qxe7 {[%emt 0:01:53]} 35. Nxe7 {[%emt 0:00:02]} Rc7 {[%emt 0:00:06]} 36. Nxc6 {[%emt 0:02:28]} Rxc6 {[%emt 0:00:05]} 37. Bxg5 {[%emt 0:00:07]} (37. Bd5 $142 Rc7 38. Bf2) 37... hxg5 {[%emt 0:00:04]} 38. Bxf7 {[%emt 0:00:13][%mdl 4096] Endgame KRB-KRB} Ba7 {[%emt 0:00:43]} 39. Kg3 {[%emt 0:00:56]} Bd4 {[%emt 0:01:16]} 40. Kg4 {[%emt 0:00:00]} Kh6 {[%emt 0:00:00]} 41. g3 {[%emt 0:01:48]} Rc7 {[%emt 0:06:07]} 42. Bd5 {[%emt 0:13:00]} Rc3 {[%emt 0:03:14]} 43. Rd2 {[%emt 0:05:23]} Rxa3 {[%emt 0:05:23]} 44. Rc2 {[%emt 0:00:14]} Bc3 {[%emt 0:00:11]} 45. Bb7 {[%emt 0:01:24][%cal Ob7a6]} a5 $1 {[%emt 0:05:27]} 46. bxa5 {[%emt 0:00:03]} b4 $1 {[%emt 0:00:38]} 47. a6 {[%emt 0:00:05]} Kg6 {[%emt 0:00:43]} 48. h4 {[%emt 0:04:15]} gxh4 {[%emt 0:00:08]} 49. Kxh4 {[%emt 0:01:20]} Kf6 {[%emt 0:01:19]} 50. Bd5 {[%emt 0:03:35] White really could win this.   Weighted Error Value: White=0.12 (very precise) /Black=0.13 (very precise)} 1/2-1/2

[Event "European Women-ch 2023"]
[Site "Petrovac"]
[Date "2023.03.25"]
[Round "7.6"]
[White "Milliet, Sophie"]
[Black "Abdulla, Khayala"]
[Result "1-0"]
[Annotator "TA"]
[ECO "C54"]
[WhiteElo "2404"]
[BlackElo "2221"]
[PlyCount "53"]
[EventDate "2023.03.15"]
[EventType "swiss"]
[EventCountry "MNE"]
[SourceTitle "playchess.com"]
[Source "ChessBase"]
[SourceQuality "1"]
[TimeControl "40/5400+30:1800+30"]

{[%evp 10,53,17,18,30,8,27,31,23,19,22,38,29,18,0,0,9,0,12,7,42,54,34,38,114,113,177,170,345,345,339,351,333,325,334,331,308,190,350,200,895,895,29986,29984,29993,29994]} 1. e4 {[%emt 0:00:04]} e5 {[%emt 0:00:26]} 2. Nf3 {[%emt 0:00:06]} Nc6 {[%emt 0:00:04]} 3. Bc4 {[%emt 0:00:26]} Nf6 {[%emt 0:00:53]} 4. d3 {[%emt 0:00:06]} Bc5 {[%emt 0:00:12]} 5. c3 {[%emt 0:01:17]} d6 {[%emt 0:00:08]} 6. O-O {[%emt 0:00:44]} (6. b4 $5 Bb6 $8 7. O-O $11) 6... a5 {[%emt 0:00:08] C54: Giuoco Piano: 4 c3 Nf6, main lines with 5 d4 and 5 d3.} 7. Re1 {[%emt 0:03:46]} O-O {[%emt 0:01:29]} 8. Bg5 {[%emt 0:00:18][%cal Bc1g5,Bg5h4,Bh4g3,Bg3h2,Bh2e5][%mdl 32]} h6 {[%emt 0:00:29][%cal Bh7h6,Bh6h5,Bh5h4][%mdl 32] White is slightly better.} 9. Bh4 {[%emt 0:00:03]} g5 {[%emt 0:02:38]} 10. Bg3 {[%emt 0:00:14]} Ba7 {[%emt 0:02:13]} 11. Nbd2 {[%emt 0:00:30]} Nh7 {[%emt 0:02:58]} 12. h3 {[%emt 0:04:35] 12.d4 might become the main line.} h5 {[%emt 0:04:32] [#]} 13. d4 $1 $36 {[%emt 0:05:26][%mdl 2048] White has some pressure.} h4 {[%emt 0:04:52]} (13... g4 14. Bh4) 14. Bh2 {[%emt 0:00:10][%cal Rd4e5]} exd4 {[%emt 0:06:20] [#]} 15. e5 $146 {[%emt 0:07:45]} ({Predecessor:} 15. Nxd4 Nxd4 16. cxd4 Bxd4 17. Nf3 Bxb2 18. Rb1 Bg7 19. e5 d5 20. Bxd5 c6 21. Bxf7+ Kxf7 {½-½ Carlsen,M (2847)-Aronian,L (2781) NIC Classic KO rapid 2021 (2.22)}) 15... dxc3 {[%emt 0:02:32]} 16. bxc3 {[%emt 0:01:24] aiming for exd6.} dxe5 {[%emt 0:10:51]} (16... d5 $1 $14 17. Bd3 f5) 17. Nxe5 $16 {[%emt 0:00:43][%cal Od1h5] Black must now prevent Qh5!} Nxe5 {[%emt 0:03:03]} (17... Qf6 $16 {was necessary.}) 18. Bxe5 $18 {[%emt 0:00:47]} Be6 $2 {[%emt 0:04:20]} (18... g4) 19. Bxe6 {[%emt 0:32:48]} fxe6 {[%emt 0:00:19] [#]} 20. Qh5 $1 {[%emt 0:00:07][%cal Rh5g6]} Bxf2+ {[%emt 0:17:06]} (20... Qxd2 $2 21. Qg6#) 21. Kh1 {[%emt 0:00:02][%cal Rh5g6]} Rf7 {[%emt 0:00:44][%cal Of2e1]} 22. Qg6+ {[%emt 0:06:50]} Kf8 {[%emt 0:00:05][%cal Of2e1]} 23. Red1 {[%emt 0:01:59] Hoping for Ne4.} Qe8 $2 {[%emt 0:13:29]} (23... Qe7 {is a better defense.}) 24. Rf1 {[%emt 0:05:52]} (24. Ne4 $142 Bg3 25. Nxg5 Bxe5 26. Nxh7+ Rxh7 27. Qxh7) 24... Qd7 $2 {[%emt 0:05:31]} (24... Ke7) 25. Ne4 {[%emt 0:01:33][%csl LRf2,LRg5]} Bg3 {[%emt 0:08:06]} 26. Nxg3 {[%emt 0:00:18]} hxg3 {[%emt 0:00:23]} 27. Qxh7 {[%emt 0:00:21] Artfully played by Milliet.   Weighted Error Value: White=0.24 (precise) /Black=0.60} 1-0

[Event "European Women-ch 2023"]
[Site "Petrovac"]
[Date "2023.03.25"]
[Round "7.6"]
[White "Spalir, Monika"]
[Black "Ter-Avetisjana, Agnesa Stepania"]
[Result "1/2-1/2"]
[Annotator "TA"]
[ECO "B19"]
[WhiteElo "2125"]
[BlackElo "1974"]
[PlyCount "103"]
[EventDate "2023.03.15"]
[EventType "swiss"]
[EventCountry "MNE"]
[SourceTitle "playchess.com"]
[Source "ChessBase"]
[SourceQuality "1"]
[TimeControl "40/5400+30:1800+30"]

{[%evp 22,103,14,0,0,0,0,0,0,0,0,0,0,0,0,0,0,0,0,0,0,0,0,0,0,-17,-10,-51,0,-39,0,0,22,31,39,44,53,57,48,51,81,73,72,67,58,51,51,51,51,51,51,51,51,51,52,0,0,0,0,0,0,0,0,0,0,0,0,0,0,0,0,0,0,0,0,0,0,0,0,0,0,0,0,0]} 1. e4 {[%emt 0:00:02]} c6 {[%emt 0:01:06]} 2. d4 {[%emt 0:00:03]} d5 {[%emt 0:00:08]} 3. Nc3 {[%emt 0:00:03]} dxe4 {[%emt 0:00:10]} 4. Nxe4 {[%emt 0:00:04]} Bf5 {[%emt 0:00:09]} 5. Ng3 {[%emt 0:00:04]} Bg6 {[%emt 0:00:08]} 6. h4 {[%emt 0:00:04]} h6 {[%emt 0:00:08]} 7. Nf3 {[%emt 0:00:03]} e6 {[%emt 0:01:03]} 8. h5 {[%emt 0:00:54]} Bh7 {[%emt 0:00:02]} 9. Bd3 {[%emt 0:00:06]} Bxd3 {[%emt 0:00:15]} 10. Qxd3 {[%emt 0:00:03]} Nf6 {[%emt 0:00:09]} 11. Bd2 {[%emt 0:00:08]} c5 {[%emt 0:00:35]} 12. O-O-O {[%emt 0:00:30]} Nc6 {[%emt 0:00:31][%cal Rc5d4] B19: Classical Caro-Kann: 4...Bf5 main line.} 13. Bc3 {[%emt 0:00:04]} Qd5 {[%emt 0:09:14]} 14. dxc5 {[%emt 0:01:04] 14.Kb1 is not played anymore.} Qxd3 {[%emt 0:01:53]} 15. Rxd3 {[%emt 0:00:06]} Bxc5 {[%emt 0:00:08]} 16. Bxf6 {[%emt 0:00:04]} gxf6 {[%emt 0:00:02]} 17. Ne4 {[%emt 0:00:10][%csl LRc5,LRf6]} Be7 {[%emt 0:00:04]} 18. Rhd1 {[%emt 0:00:47]} Rd8 {[%emt 0:02:52]} 19. Rxd8+ {[%emt 0:25:39]} Nxd8 {[%emt 0:01:35]} 20. g3 {[%emt 0:00:23]} f5 {[%emt 0:02:40]} 21. Nd6+ {[%emt 0:00:22]} Bxd6 {[%emt 0:00:20]} 22. Rxd6 $11 {[%emt 0:00:01][%mdl 4096] Endgame KRN-KRN} Ke7 {[%emt 0:00:01] [#]} 23. Rd2 $146 {[%emt 0:05:22]} ({Predecessor:} 23. Rd3 Nc6 24. b4 a6 25. a3 Rg8 26. c4 Rg4 27. Rc3 Nd4 28. Nxd4 Rxd4 29. c5 {½-½ Lajthajm,B (2414)-Ratkovic,M (2411) SRB-chT Subotica 2019 (1.6)}) 23... Nc6 {[%emt 0:01:12]} 24. Nd4 {[%emt 0:02:00]} Rc8 {[%emt 0:10:16]} ({Better is} 24... Ne5 $15) 25. b3 {[%emt 0:05:33]} Nxd4 {[%emt 0:05:22]} 26. Rxd4 $15 {[%emt 0:00:02] KR-KR} e5 {[%emt 0:00:00]} 27. Rd5 {[%emt 0:07:12]} Ke6 {[%emt 0:04:19]} 28. c4 {[%emt 0:01:53]} Rg8 {[%emt 0:05:09]} 29. Rb5 {[%emt 0:03:27]} b6 {[%emt 0:01:07]} 30. a4 {[%emt 0:02:07][%cal Ba2a4,Ba4a5][%mdl 32]} Rd8 {[%emt 0:09:40]} 31. a5 {[%emt 0:09:49]} Rd6 {[%emt 0:00:50]} 32. c5 {[%emt 0:02:27]} bxc5 {[%emt 0:00:01]} 33. Rxc5 {[%emt 0:00:15]} Kf6 {[%emt 0:07:32]} 34. Rc7 {[%emt 0:06:50]} a6 {[%emt 0:02:35]} 35. Kc2 {[%emt 0:08:28] Prevents Rd3} e4 {[%emt 0:02:42]} 36. b4 {[%emt 0:01:43]} Kg5 $1 {[%emt 0:02:16]} 37. Rxf7 {[%emt 0:02:30] Rb7 is the strong threat.} Kg4 $1 {[%emt 0:01:05]} 38. Kc1 {[%emt 0:06:33]} ({White should play} 38. Kc3 $14) 38... Rd4 $11 {[%emt 0:02:48] The position is equal.} 39. b5 {[%emt 0:00:26]} axb5 {[%emt 0:06:30]} 40. a6 {[%emt 0:00:00]} Ra4 {[%emt 0:00:00]} 41. a7 {[%emt 0:00:20]} b4 {[%emt 0:02:03]} 42. Kc2 {[%emt 0:05:44] [#] And now Kb3 would win.} Ra3 {[%emt 0:00:40]} 43. Kb2 {[%emt 0:00:13]} Kg5 {[%emt 0:00:51]} 44. Rg7+ {[%emt 0:10:15]} Kf6 $1 {[%emt 0:03:23]} 45. Rb7 {[%emt 0:04:52]} Kg5 {[%emt 0:01:11]} 46. Rh7 {[%emt 0:04:49]} (46. Rxb4 $2 {is the wrong capture.} Rxa7 47. f3 exf3 $19) 46... Kg4 {[%emt 0:02:08]} 47. Rf7 {[%emt 0:00:17]} ({Reject} 47. Rxh6 Rxa7 48. Rf6 Rh7 $17) 47... Kg5 {[%emt 0:00:37]} 48. Rg7+ {[%emt 0:00:28]} Kf6 $1 {[%emt 0:01:10]} 49. Rb7 {[%emt 0:03:46]} Kg5 {[%emt 0:00:39]} 50. Rf7 {[%emt 0:00:13]} (50. Rxb4 $2 Rxa7 51. Rb5 Rd7 $19) 50... Kg4 {[%emt 0:00:35]} 51. Kc2 {[%emt 0:00:41]} Kg5 {[%emt 0:01:03]} 52. Kb2 {[%emt 0:01:38] Weighted Error Value: White=0.04 (flawless) /Black=0.04 (flawless)} 1/2-1/2

[Event "European Women-ch 2023"]
[Site "Petrovac"]
[Date "2023.03.25"]
[Round "7.7"]
[White "Wagner, Dinara"]
[Black "Unuk, Laura"]
[Result "1/2-1/2"]
[Annotator "TA"]
[ECO "D45"]
[WhiteElo "2411"]
[BlackElo "2297"]
[PlyCount "37"]
[EventDate "2023.03.15"]
[EventType "swiss"]
[EventCountry "MNE"]
[SourceTitle "playchess.com"]
[Source "ChessBase"]
[SourceQuality "1"]
[TimeControl "40/5400+30:1800+30"]

{[%evp 22,37,0,0,0,0,12,0,0,0,0,0,0,0,0,0,0,-43]} 1. d4 {[%emt 0:00:04]} Nf6 {[%emt 0:00:33]} 2. c4 {[%emt 0:00:06]} e6 {[%emt 0:00:13]} 3. Nf3 {[%emt 0:00:08]} d5 {[%emt 0:00:34]} 4. Nc3 {[%emt 0:00:13]} c6 {[%emt 0:07:38]} 5. e3 {[%emt 0:00:44]} Nbd7 {[%emt 0:00:33]} 6. Qc2 {[%emt 0:00:09]} Bd6 {[%emt 0:00:31]} 7. b3 {[%emt 0:00:20]} O-O {[%emt 0:00:37]} 8. Be2 {[%emt 0:00:40]} b6 {[%emt 0:04:12]} 9. Bb2 {[%emt 0:00:44]} Bb7 {[%emt 0:00:06]} 10. O-O {[%emt 0:00:21]} Rc8 {[%emt 0:00:35]} 11. e4 {[%emt 0:24:04]} dxe4 {[%emt 0:19:29]} 12. Nxe4 {[%emt 0:00:24] The position is equal.} Nxe4 {[%emt 0:10:48] D45: Semi-Slav: 5 e3.} 13. Qxe4 {[%emt 0:00:18]} Nf6 {[%emt 0:01:00]} 14. Qh4 {[%emt 0:04:12]} c5 {[%emt 0:04:42]} 15. dxc5 {[%emt 0:17:05]} Bxc5 {[%emt 0:03:13]} 16. Rad1 {[%emt 0:12:41]} Qe7 {[%emt 0:01:16]} 17. Bd3 {[%emt 0:05:34] [#] Bxf6 would be deadly.} Ne4 {[%emt 0:18:47]} 18. Qh5 {[%emt 0:16:29][%cal Ob2g7]} f5 {[%emt 0:05:45] [#]} 19. Bd4 $146 {[%emt 0:10:09] An uneventful encounter.   Weighted Error Value: White=0.02 (flawless) /Black=0.00 (flawless)} ({Predecessor:} 19. Bxe4 fxe4 20. Ne5 Rcd8 21. Rxd8 Rxd8 22. Rd1 Rxd1+ 23. Qxd1 e3 24. fxe3 Qg5 25. Qf1 Bxe3+ {0-1 Jacob,V (2276)-Gustafsson,J (2628) Bundesliga 1314 2013 (4.6)}) 1/2-1/2

[Event "European Women-ch 2023"]
[Site "Petrovac"]
[Date "2023.03.25"]
[Round "7.7"]
[White "Radeva, Viktoria"]
[Black "Mammadova, Gulnar"]
[Result "1/2-1/2"]
[Annotator "TA"]
[ECO "C54"]
[WhiteElo "2247"]
[BlackElo "2358"]
[PlyCount "123"]
[EventDate "2023.03.15"]
[EventType "swiss"]
[EventCountry "MNE"]
[SourceTitle "playchess.com"]
[Source "ChessBase"]
[SourceQuality "1"]
[TimeControl "40/5400+30:1800+30"]

{[%evp 13,123,16,19,14,27,20,20,21,30,35,33,18,19,12,15,13,10,16,20,0,7,-25,-39,-61,-69,-76,-62,-180,-178,-235,-210,-234,-231,-219,-217,-217,-101,-181,-83,-83,-84,-84,-84,-84,-84,-84,-68,-104,-116,-113,-116,-115,-84,-83,-84,-106,-99,-99,-99,-129,-107,-143,-57,-65,-62,-130,-121,-124,-125,-224,-228,-243,-243,-243,-56,-55,0,-241,-241,-233,-154,-142,-102,-102,-94,-95,0,0,0,0,0,0,0,0,0,0,0,0,0,0,0,0,0,0,0,0,0,0,0,0,0,0]} 1. e4 {[%emt 0:00:06]} e5 {[%emt 0:00:08]} 2. Nf3 {[%emt 0:00:06]} Nc6 {[%emt 0:00:09]} 3. Bc4 {[%emt 0:00:11]} Nf6 {[%emt 0:00:12]} 4. d3 {[%emt 0:00:05]} Bc5 {[%emt 0:00:23]} 5. O-O {[%emt 0:00:06]} d6 {[%emt 0:00:15]} 6. c3 {[%emt 0:00:08]} a6 {[%emt 0:00:26]} 7. a4 {[%emt 0:00:20]} h6 {[%emt 0:02:25]} 8. Nbd2 {[%emt 0:00:28] C54: Giuoco Piano: 4 c3 Nf6, main lines with 5 d4 and 5 d3.} Ba7 {[%emt 0:01:04]} 9. Re1 {[%emt 0:06:02]} O-O {[%emt 0:02:40]} 10. h3 {[%emt 0:00:35]} Be6 {[%emt 0:01:11]} 11. Bxe6 {[%emt 0:03:26]} fxe6 {[%emt 0:00:05]} 12. Nf1 {[%emt 0:04:33]} Qe8 {[%emt 0:05:20]} 13. Be3 {[%emt 0:04:15]} Bxe3 {[%emt 0:03:41]} 14. Rxe3 {[%emt 0:03:41]} Nh5 {[%emt 0:07:33]} 15. b4 {[%emt 0:11:44]} Qf7 {[%emt 0:07:59]} 16. Ra2 {[%emt 0:07:59] [#]} Nf4 $146 {[%emt 0:08:55]} ({Predecessor:} 16... Ne7 17. g3 a5 18. b5 Nf6 19. N1h2 Rad8 20. d4 exd4 21. cxd4 e5 22. Rc2 Ng6 {0-1 Vachier Lagrave,M (2779)-Nakamura,H (2777) chess.com Speed 5m+1spm 2018 blitz (2.10)}) 17. Kh2 {[%emt 0:16:24]} d5 {[%emt 0:06:54][%cal Bd6d5,Bd5d4][%mdl 32]} 18. d4 {[%emt 0:07:15]} exd4 {[%emt 0:06:31]} 19. Nxd4 {[%emt 0:10:22]} e5 $1 {[%emt 0:04:15]} (19... Qg6 20. g3 Nxd4 21. cxd4 $14) 20. Nxc6 {[%emt 0:08:49]} ({Only move:} 20. Nb3 $1 $15) 20... d4 $1 $19 {[%emt 0:04:18][%cal Od4e3][%mdl 64] Discovered Attack} (20... bxc6 21. Rd2 $11) 21. Rg3 {[%emt 0:00:54]} (21. Ne7+ $142 Kh7 22. Ree2 Nxe2 23. Rxe2 Qxe7 24. cxd4) 21... Qxa2 {[%emt 0:07:43]} 22. Qg4 {[%emt 0:00:58][%csl Gg3][%cal Rg4g7]} g5 {[%emt 0:00:49]} (22... bxc6 $2 23. Qxg7#) 23. Nxe5 {[%emt 0:03:02]} Qxf2 {[%emt 0:09:26]} 24. Rf3 {[%emt 0:01:29]} Qe2 {[%emt 0:03:19]} (24... Qxg2+ $1 $19 {has better winning chances.} 25. Qxg2 Nxg2 26. Kxg2 Rxf3 {[%mdl 64] Remove Defender} 27. Nxf3 dxc3) 25. Ng6 {[%emt 0:03:32]} Qxe4 {[%emt 0:03:31]} (25... Nxg6 $2 26. Rxf8+ (26. cxd4 $2 Rxf3 27. Qxf3 Qxf3 $19) 26... Rxf8 27. Qxe2 $18) (25... Qxg2+ $1 $19 26. Qxg2 Nxg2 27. Nxf8 (27. Rxf8+ $2 Rxf8 28. Kxg2 dxc3 $19) 27... Nh4) 26. Nxf8 $17 {[%emt 0:00:10]} Rxf8 {[%emt 0:00:03]} (26... Kxf8 27. Ng3 Qe5 28. cxd4 Qxd4 29. Nh5 $16 (29. Qe6 Re8 $11)) 27. Ng3 {[%emt 0:02:03] Prevents d3} Qd5 {[%emt 0:04:06]} (27... Qc2 28. Nh5 Kh7 29. Qd7+ (29. cxd4 Qxa4 30. d5 Qa1 $11) 29... Kg6 30. Rxf4 (30. cxd4 $2 Qxg2#) 30... Rxf4 31. Qe8+ Kh7 32. Qd7+ Kg6 33. Qe8+ Kh7 34. Qd7+ Kg6 $11) 28. cxd4 {[%emt 0:00:59]} Qxd4 {[%emt 0:01:09]} 29. Nh5 {[%emt 0:04:26]} ({Not} 29. Nf5 $2 Qe5 30. Nh4 (30. Nxh6+ $2 Kh7 $19) 30... h5 $19) 29... Qe5 {[%emt 0:00:40] White is weak on the dark squares} 30. Kh1 {[%emt 0:00:33]} Nxh5 {[%emt 0:04:21]} (30... Ne6 {keeps more tension.} 31. a5 c6 32. Rxf8+ Kxf8 33. Ng3 Qd5) 31. Rxf8+ {[%emt 0:00:04]} Kxf8 {[%emt 0:00:02]} 32. Qxh5 {[%emt 0:00:06][%mdl 4096] Endgame KQ-KQ} Kg7 {[%emt 0:00:14] White must now prevent ...Qe1+.} 33. Qd1 {[%emt 0:00:11] Dodges Qe1+} Qd6 {[%emt 0:00:56]} 34. Qa1+ {[%emt 0:00:05]} Kg6 {[%emt 0:00:25]} 35. Qb1+ {[%emt 0:00:06]} Kf6 {[%emt 0:00:06]} 36. a5 {[%emt 0:01:09]} Ke5 {[%emt 0:01:21]} 37. b5 {[%emt 0:01:35]} axb5 {[%emt 0:00:18]} ({Black should try} 37... Kd5 $17 38. bxa6 bxa6) 38. Qxb5+ $15 {[%emt 0:00:13]} Qd5 {[%emt 0:00:05]} 39. Qe8+ {[%emt 0:00:29]} (39. Qe2+ $15 Qe4 40. Qb2+ Ke6 41. Qc3) 39... Kd4 $1 $17 {[%emt 0:01:08]} 40. Qa4+ {[%emt 0:00:00]} Qc4 $1 {[%emt 0:00:00]} 41. Qd7+ {[%emt 0:07:51] [#]} (41. Qa1+ $17 {keeps fighting.} Kd5 42. Qa3) 41... Kc3 $1 $19 {[%emt 0:04:37]} 42. Qg7+ {[%emt 0:01:37]} Kb4 {[%emt 0:01:33] And now ...Qc1+ would win.} 43. Qb2+ {[%emt 0:00:52]} Qb3 $2 {[%emt 0:08:45]} (43... Kxa5 $19 {Threatens to win with ...b5.} 44. Qxb7 c5 45. Qa7+ Kb5 46. Qb7+ Ka4 47. Qc6+ Kb3 48. Qb6+ Qb4 49. Qxh6 c4) 44. Qd4+ $15 {[%emt 0:00:19]} Qc4 $2 {[%emt 0:00:34]} ({Reject} 44... Kxa5 45. Qa7+ Kb5 46. Qxb7+ Ka4 47. Qe4+ Ka3 48. Qe7+ Qb4 49. Qxc7 $11) (44... Kb5 $1 $15 45. Qd7+ Kxa5 46. Qxc7+ Ka4) 45. Qb2+ $19 {[%emt 0:01:23]} Kxa5 {[%emt 0:00:23] aiming for ...b5.} 46. Qxb7 {[%emt 0:00:32]} h5 {[%emt 0:02:08]} 47. Qa7+ {[%emt 0:01:28]} Kb4 {[%emt 0:00:59]} 48. Qb7+ {[%emt 0:00:17]} Kc3 {[%emt 0:03:39]} 49. Qf3+ {[%emt 0:00:09] [#]} Kd2 {[%emt 0:00:14]} (49... Kb2 $1 $17 {...Qc1+ would be deadly.} 50. Qxh5 c5 51. Qxg5 Qf1+ 52. Kh2 c4) 50. Qf2+ $11 {[%emt 0:10:29] The position is equal.} Qe2 {[%emt 0:05:42]} 51. Qd4+ {[%emt 0:00:14]} Qd3 {[%emt 0:00:31]} 52. Qb2+ {[%emt 0:02:28]} Kd1 {[%emt 0:00:06]} 53. Qa1+ {[%emt 0:01:03]} Kc2 {[%emt 0:01:06]} 54. Qa2+ {[%emt 0:01:45]} Kc1 {[%emt 0:01:17]} 55. Qa1+ {[%emt 0:00:11]} Qb1 {[%emt 0:01:01]} 56. Qc3+ {[%emt 0:00:05]} Qc2 {[%emt 0:00:02]} 57. Qa1+ {[%emt 0:00:26]} Kd2 {[%emt 0:00:59]} 58. Qd4+ {[%emt 0:00:09]} Ke2 {[%emt 0:02:54]} 59. Qe5+ {[%emt 0:01:35]} Kf1 {[%emt 0:00:20][%csl Gf1][%cal Rc2g2]} 60. Qa1+ {[%emt 0:01:23]} Kf2 {[%emt 0:00:25]} 61. Qd4+ {[%emt 0:00:14]} Ke2 {[%emt 0:01:16] ( -> ...Qd1+)} (61... Kg3 $2 {gets mated.} 62. Qe3+ Kh4 63. Qe1+) 62. Qe5+ {[%emt 0:00:16] Weighted Error Value: White=0.15 (very precise) /Black=0.18 (very precise)} 1/2-1/2